fUSD/lending_fUSD_20240227
["ID","MTS","AMOUNT","RATE_DAILY","PERIOD"]
[315480736,1709073043187,-503.83433714,0.00023835,2]
[315480737,1709073043196,-502.77483894,0.00023835,2]
[315480738,1709073043206,-500.0,0.00023835,2]
[315480739,1709073043220,-500.0,0.00023835,2]
[315480740,1709073043230,-500.0,0.00023835,2]
[315480741,1709073043239,-501.69473943,0.00023835,2]
[315480742,1709073043248,-505.74388808,0.00023835,2]
[315480743,1709073043258,-500.0,0.00023835,2]
[315480744,1709073043267,-500.0,0.00023835,2]
[315480745,1709073043276,-500.0,0.00023835,2]
[315480746,1709073043285,-515.1124201,0.00023835,2]
[315480747,1709073043295,-500.0,0.00023835,2]
[315480748,1709073043305,-500.0,0.00023835,2]
[315480749,1709073043314,-517.39936023,0.00023835,2]
[315480750,1709073043323,-500.0,0.00023835,2]
[315480751,1709073043332,-500.0,0.00023835,2]
[315480752,1709073043341,-500.0,0.00023835,2]
[315480753,1709073043351,-500.0,0.00023835,2]
[315480754,1709073043360,-500.0,0.00023835,2]
[315480755,1709073043369,-500.0,0.00023835,2]
[315480756,1709073043378,-500.0,0.00023835,2]
[315480757,1709073043387,-508.1768392,0.00023835,2]
[315480758,1709073043396,-505.59708295,0.00023835,2]
[315480759,1709073043406,-511.2840908,0.00023835,2]
[315480760,1709073043416,-301.2255093,0.00023835,2]
[315480761,1709073043427,-500.0,0.00023835,2]
[315480762,1709073043437,-500.0,0.00023835,2]
[315480763,1709073043446,-500.0,0.00023835,2]
[315480764,1709073043456,-500.0,0.00023835,2]
[315480765,1709073043466,-500.0,0.00023835,2]
[315480766,1709073043475,-518.88085974,0.00023835,2]
[315480767,1709073043484,-500.0,0.00023835,2]
[315480768,1709073043493,-500.0,0.00023835,2]
[315480769,1709073043504,-500.0,0.00023835,2]
[315480770,1709073043514,-500.0,0.00023835,2]
[315480771,1709073043524,-506.7126054,0.00023835,2]
[315480772,1709073043533,-508.82193844,0.00023835,2]
[315480773,1709073043542,-500.0,0.00023835,2]
[315480774,1709073043551,-500.0,0.00023835,2]
[315480775,1709073043561,-500.0,0.00023835,2]
[315480776,1709073043570,-511.94629595,0.00023835,2]
[315480777,1709073043579,-500.0,0.00023835,2]
[315480778,1709073043588,-510.51344157,0.00023835,2]
[315480779,1709073043598,-155.93303735,0.00023835,2]
[315480780,1709073043607,-230.77031471,0.00023835,2]
[315480781,1709073043617,-182.87561775,0.00023835,2]
[315480782,1709073043626,-510.31762656,0.00023835,2]
[315480783,1709073043635,-1721.12831354,0.00023835,2]
[315480784,1709073043645,-500.0,0.00023835,2]
[315480785,1709073043656,-500.0,0.00023835,2]
[315480786,1709073043666,-500.0,0.00023835,2]
[315480787,1709073043676,-500.92492631,0.00023835,2]
[315480788,1709073043686,-500.0,0.00023835,2]
[315480789,1709073043697,-500.0,0.00023835,2]
[315480790,1709073043706,-507.97666726,0.00023835,2]
[315480791,1709073043716,-504.78483175,0.00023835,2]
[315480792,1709073043725,-504.39490286,0.00023835,2]
[315480793,1709073043734,-504.12892669,0.00023835,2]
[315480794,1709073043744,-513.59295808,0.00023835,2]
[315480795,1709073043754,-500.0,0.00023835,2]
[315480796,1709073043764,-500.0,0.00023835,2]
[315480797,1709073043773,-506.08829649,0.00023835,2]
[315480798,1709073043782,-500.0,0.00023835,2]
[315480799,1709073043792,-505.890825,0.00023835,2]
[315480800,1709073043801,-503.00536993,0.00023835,2]
[315480801,1709073043810,-525.81981005,0.00023835,2]
[315480802,1709073043819,-508.39623791,0.00023835,2]
[315480803,1709073043828,-505.16368706,0.00023835,2]
[315480804,1709073043838,-507.75538089,0.00023835,2]
[315480805,1709073043847,-500.0,0.00023835,2]
[315480806,1709073043857,-500.0,0.00023835,2]
[315480807,1709073043868,-500.0,0.00023835,2]
[315480808,1709073043878,-500.0,0.00023835,2]
[315480809,1709073043887,-500.0,0.00023835,2]
[315480810,1709073043896,-500.0,0.00023835,2]
[315480811,1709073043905,-500.0,0.00023835,2]
[315480812,1709073043914,-500.0,0.00023835,2]
[315480813,1709073043923,-586.80146614,0.00023835,2]
[315480814,1709073043932,-500.0,0.00023835,2]
[315480815,1709073043941,-500.0,0.00023835,2]
[315480816,1709073043951,-500.0,0.00023835,2]
[315480817,1709073043961,-507.05166531,0.00023835,2]
[315480818,1709073043970,-503.44637895,0.00023835,2]
[315480819,1709073043980,-503.57155842,0.00023835,2]
[315480820,1709073043989,-508.38269299,0.00023835,2]
[315480821,1709073043998,-500.0,0.00023835,2]
[315480822,1709073044008,-500.0,0.00023835,2]
[315480823,1709073044017,-500.0,0.00023835,2]
[315480824,1709073044026,-500.0,0.00023835,2]
[315480825,1709073044035,-504.78245961,0.00023835,2]
[315480826,1709073044044,-601.88796997,0.00023835,2]
[315480827,1709073044053,-473.85459898,0.00023835,2]
[315480828,1709073044063,-503.06829747,0.00023835,2]
[315480829,1709073044072,-500.0,0.00023835,2]
[315480830,1709073044081,-500.0,0.00023835,2]
[315480831,1709073044089,-500.0,0.00023835,2]
[315480832,1709073044099,-500.0,0.00023835,2]
[315480833,1709073044110,-500.0,0.00023835,2]
[315480834,1709073044119,-500.0,0.00023835,2]
[315480835,1709073044128,-501.73103809,0.00023835,2]
[315480836,1709073044138,-500.0,0.00023835,2]
[315480837,1709073044147,-509.19606147,0.00023835,2]
[315480838,1709073044156,-500.0,0.00023835,2]
[315480839,1709073044166,-505.66475097,0.00023835,2]
[315480840,1709073044175,-512.90207862,0.00023835,2]
[315480841,1709073044184,-500.0,0.00023835,2]
[315480842,1709073044193,-500.0,0.00023835,2]
[315480843,1709073044204,-500.0,0.00023835,2]
[315480844,1709073044218,-500.0,0.00023835,2]
[315480845,1709073044229,-500.0,0.00023835,2]
[315480846,1709073044239,-509.03329373,0.00023835,2]
[315480847,1709073044248,-500.0,0.00023835,2]
[315480848,1709073044258,-345.14576245,0.00023835,2]
[315480849,1709073044268,-500.0,0.00023835,2]
[315480850,1709073044278,-500.0,0.00023835,2]
[315480851,1709073044287,-503.04394488,0.00023835,2]
[315480852,1709073044297,-500.0,0.00023835,2]
[315480853,1709073044305,-500.0,0.00023835,2]
[315480854,1709073044473,-500.0,0.00023835,2]
[315480855,1709073044483,-505.3087823,0.00023835,2]
[315480856,1709073044492,-500.0,0.00023835,2]
[315480857,1709073044501,-500.0,0.00023835,2]
[315480858,1709073044511,-500.0,0.00023835,2]
[315480859,1709073044521,-507.79744664,0.00023835,2]
[315480860,1709073044530,-500.0,0.00023835,2]
[315480861,1709073044539,-510.57051486,0.00023835,2]
[315480862,1709073044549,-500.0,0.00023835,2]
[315480863,1709073044558,-450.0,0.00023835,2]
[315480864,1709073044567,-511.14149349,0.00023835,2]
[315480865,1709073044576,-500.0,0.00023835,2]
[315480866,1709073044586,-500.0,0.00023835,2]
[315480867,1709073044596,-500.0,0.00023835,2]
[315480868,1709073044605,-500.0,0.00023835,2]
[315480869,1709073044615,-512.46961911,0.00023835,2]
[315480870,1709073044624,-500.0,0.00023835,2]
[315480871,1709073044634,-500.0,0.00023835,2]
[315480872,1709073044643,-513.09976335,0.00023835,2]
[315480873,1709073044652,-500.0,0.00023835,2]
[315480874,1709073044661,-504.86146436,0.00023835,2]
[315480875,1709073044670,-500.0,0.00023835,2]
[315480876,1709073044679,-511.70684125,0.00023835,2]
[315480877,1709073044687,-500.0,0.00023835,2]
[315480878,1709073044696,-500.0,0.00023835,2]
[315480879,1709073044705,-500.0,0.00023835,2]
[315480880,1709073044713,-500.0,0.00023835,2]
[315480881,1709073044721,-512.72612275,0.00023835,2]
[315480882,1709073044731,-500.0,0.00023835,2]
[315480883,1709073044739,-500.0,0.00023835,2]
[315480884,1709073044748,-512.62156315,0.00023835,2]
[315480885,1709073044757,-500.0,0.00023835,2]
[315480886,1709073044765,-500.0,0.00023835,2]
[315480887,1709073044777,-500.0,0.00023835,2]
[315480888,1709073044786,-500.0,0.00023835,2]
[315480889,1709073044795,-249.49112408,0.00023835,2]
[315480890,1709073044805,-500.0,0.00023835,2]
[315480891,1709073044814,-160.79,0.00023835,2]
[315480892,1709073044823,-528.41,0.00023835,2]
[315480893,1709073044832,-500.0,0.00023835,2]
[315480894,1709073044843,-500.0,0.00023835,2]
[315480895,1709073044852,-500.0,0.00023835,2]
[315480896,1709073044861,-500.0,0.00023835,2]
[315480897,1709073044870,-500.0,0.00023835,2]
[315480898,1709073044880,-500.0,0.00023835,2]
[315480899,1709073044890,-500.0,0.00023835,2]
[315480900,1709073044900,-509.73380263,0.00023835,2]
[315480901,1709073044909,-500.0,0.00023835,2]
[315480902,1709073044923,-500.0,0.00023835,2]
[315480903,1709073044932,-500.0,0.00023835,2]
[315480904,1709073044941,-500.0,0.00023835,2]
[315480905,1709073044950,-500.0,0.00023835,2]
[315480906,1709073044959,-500.0,0.00023835,2]
[315480907,1709073044968,-500.0,0.00023835,2]
[315480908,1709073044977,-500.0,0.00023835,2]
[315480909,1709073044987,-500.0,0.00023835,2]
[315480910,1709073044996,-510.72848023,0.00023835,2]
[315480911,1709073045005,-500.0,0.00023835,2]
[315480912,1709073045014,-510.57190432,0.00023835,2]
[315480913,1709073045023,-500.0,0.00023835,2]
[315480914,1709073045032,-500.0,0.00023835,2]
[315480915,1709073045041,-500.0,0.00023835,2]
[315480916,1709073045053,-500.0,0.00023835,2]
[315480917,1709073045062,-507.20370587,0.00023835,2]
[315480918,1709073045071,-500.0,0.00023835,2]
[315480919,1709073045080,-500.0,0.00023835,2]
[315480920,1709073045089,-500.0,0.00023835,2]
[315480921,1709073045099,-500.0,0.00023835,2]
[315480922,1709073045108,-500.0,0.00023835,2]
[315480923,1709073045117,-500.0,0.00023835,2]
[315480924,1709073045127,-500.0,0.00023835,2]
[315480925,1709073045136,-500.0,0.00023835,2]
[315480926,1709073045145,-489.52,0.00023835,2]
[315480927,1709073045154,-500.0,0.00023835,2]
[315480928,1709073045163,-534.00035713,0.00023835,2]
[315480929,1709073045172,-500.0,0.00023835,2]
[315480930,1709073045181,-500.0,0.00023835,2]
[315480932,1709073045190,-476.1,0.00023835,2]
[315480934,1709073045199,-500.0,0.00023835,2]
[315480936,1709073045209,-500.0,0.00023835,2]
[315480938,1709073045221,-500.0,0.00023835,2]
[315480940,1709073045231,-500.0,0.00023835,2]
[315480942,1709073045240,-500.0,0.00023835,2]
[315480945,1709073045249,-500.0,0.00023835,2]
[315480947,1709073045258,-500.0,0.00023835,2]
[315480949,1709073045267,-188.7118458,0.00023835,2]
[315480951,1709073045276,-500.0,0.00023835,2]
[315480953,1709073045286,-500.0,0.00023835,2]
[315480955,1709073045295,-500.0,0.00023835,2]
[315480956,1709073045305,-506.6699164,0.00023835,2]
[315480958,1709073045313,-500.0,0.00023835,2]
[315480961,1709073045323,-500.0,0.00023835,2]
[315480964,1709073045331,-500.0,0.00023835,2]
[315480966,1709073045340,-500.0,0.00023835,2]
[315480967,1709073045349,-508.47663582,0.00023835,2]
[315480968,1709073045358,-500.0,0.00023835,2]
[315480969,1709073045368,-500.0,0.00023835,2]
[315480971,1709073045377,-500.0,0.00023835,2]
[315480973,1709073045386,-500.0,0.00023835,2]
[315480975,1709073045395,-500.0,0.00023835,2]
[315480977,1709073045404,-500.0,0.00023835,2]
[315480979,1709073045414,-500.0,0.00023835,2]
[315480981,1709073045423,-500.0,0.00023835,2]
[315480982,1709073045432,-500.0,0.00023835,2]
[315480983,1709073045441,-248.15,0.00023835,2]
[315480984,1709073045451,-503.43647403,0.00023835,2]
[315480985,1709073045460,-500.0,0.00023835,2]
[315480986,1709073045469,-500.0,0.00023835,2]
[315480987,1709073045479,-500.0,0.00023835,2]
[315480988,1709073045488,-500.0,0.00023835,2]
[315480989,1709073045497,-500.0,0.00023835,2]
[315480990,1709073045507,-509.31375057,0.00023835,2]
[315480991,1709073045517,-500.0,0.00023835,2]
[315480992,1709073045527,-500.0,0.00023835,2]
[315480993,1709073045535,-500.0,0.00023835,2]
[315480994,1709073045544,-500.0,0.00023835,2]
[315480995,1709073045554,-500.0,0.00023835,2]
[315480996,1709073045563,-500.0,0.00023835,2]
[315480997,1709073045572,-500.0,0.00023835,2]
[315480998,1709073045582,-510.58944491,0.00023835,2]
[315480999,1709073045591,-500.0,0.00023835,2]
[315481000,1709073045600,-500.0,0.00023835,2]
[315481001,1709073045610,-503.47069947,0.00023835,2]
[315481002,1709073045619,-500.0,0.00023835,2]
[315481003,1709073045628,-500.0,0.00023835,2]
[315481004,1709073045638,-506.44360194,0.00023835,2]
[315481005,1709073045647,-500.0,0.00023835,2]
[315481006,1709073045656,-513.05798157,0.00023835,2]
[315481007,1709073045665,-500.0,0.00023835,2]
[315481008,1709073045674,-500.0,0.00023835,2]
[315481009,1709073045683,-500.0,0.00023835,2]
[315481010,1709073045693,-511.70150995,0.00023835,2]
[315481011,1709073045702,-505.49094388,0.00023835,2]
[315481012,1709073045711,-500.0,0.00023835,2]
[315481013,1709073045721,-500.0,0.00023835,2]
[315481014,1709073045730,-500.0,0.00023835,2]
[315481015,1709073045740,-500.0,0.00023835,2]
[315481016,1709073045749,-500.0,0.00023835,2]
[315481017,1709073045758,-500.0,0.00023835,2]
[315481018,1709073045767,-500.0,0.00023835,2]
[315481019,1709073045777,-500.0,0.00023835,2]
[315481021,1709073045786,-500.0,0.00023835,2]
[315481022,1709073045795,-500.0,0.00023835,2]
[315481023,1709073045804,-500.0,0.00023835,2]
[315481024,1709073045814,-500.0,0.00023835,2]
[315481025,1709073045823,-500.0,0.00023835,2]
[315481027,1709073045832,-500.0,0.00023835,2]
[315481028,1709073045841,-500.0,0.00023835,2]
[315481029,1709073045850,-500.0,0.00023835,2]
[315481030,1709073045859,-500.0,0.00023835,2]
[315481031,1709073045867,-500.0,0.00023835,2]
[315481032,1709073045876,-500.0,0.00023835,2]
[315481033,1709073045885,-500.0,0.00023835,2]
[315481034,1709073045895,-500.0,0.00023835,2]
[315481035,1709073045903,-500.0,0.00023835,2]
[315481036,1709073045912,-500.0,0.00023835,2]
[315481037,1709073045922,-516.52683334,0.00023835,2]
[315481038,1709073045930,-512.03117327,0.00023835,2]
[315481039,1709073045939,-500.0,0.00023835,2]
[315481040,1709073045948,-500.0,0.00023835,2]
[315481041,1709073045957,-500.0,0.00023835,2]
[315481042,1709073045966,-500.0,0.00023835,2]
[315481043,1709073045975,-500.0,0.00023835,2]
[315481044,1709073045985,-500.0,0.00023835,2]
[315481045,1709073045993,-400.2497635,0.00023835,2]
[315481046,1709073046003,-500.0,0.00023835,2]
[315481047,1709073046013,-507.41809111,0.00023835,2]
[315481048,1709073046021,-529.53220934,0.00023835,2]
[315481049,1709073046031,-500.0,0.00023835,2]
[315481050,1709073046039,-500.0,0.00023835,2]
[315481051,1709073046049,-500.0,0.00023835,2]
[315481052,1709073046058,-500.0,0.00023835,2]
[315481053,1709073046068,-500.0,0.00023835,2]
[315481054,1709073046077,-500.0,0.00023835,2]
[315481055,1709073046086,-500.0,0.00023835,2]
[315481056,1709073046095,-509.16780247,0.00023835,2]
[315481057,1709073046104,-500.0,0.00023835,2]
[315481058,1709073046114,-500.0,0.00023835,2]
[315481059,1709073046123,-500.0,0.00023835,2]
[315481060,1709073046132,-500.0,0.00023835,2]
[315481061,1709073046144,-500.0,0.00023835,2]
[315481062,1709073046153,-504.22997444,0.00023835,2]
[315481063,1709073046162,-519.48601462,0.00023835,2]
[315481064,1709073046173,-500.0,0.00023835,2]
[315481065,1709073046182,-524.79452311,0.00023835,2]
[315481066,1709073046192,-280.09884266,0.00023835,2]
[315481067,1709073046202,-483.87996432,0.00023835,2]
[315481068,1709073046218,-957.6,0.00023835,2]
[315481069,1709073046228,-500.0,0.00023835,2]
[315481070,1709073046238,-957.6,0.00023835,2]
[315481071,1709073046250,-500.0,0.00023835,2]
[315481072,1709073046259,-502.62220082,0.00023835,2]
[315481073,1709073046269,-957.6,0.00023835,2]
[315481074,1709073046278,-957.6,0.00023835,2]
[315481075,1709073046289,-500.0,0.00023835,2]
[315481076,1709073046298,-957.6,0.00023835,2]
[315481077,1709073046307,-957.6,0.00023835,2]
[315481078,1709073046316,-515.54037188,0.00023835,2]
[315481079,1709073046325,-500.0,0.00023835,2]
[315481080,1709073046336,-957.6,0.00023835,2]
[315481081,1709073046346,-957.6,0.00023835,2]
[315481082,1709073046356,-957.6,0.00023835,2]
[315481083,1709073046366,-520.33935003,0.00023835,2]
[315481084,1709073046375,-500.0,0.00023835,2]
[315481085,1709073046386,-500.0,0.00023835,2]
[315481086,1709073046395,-500.0,0.00023835,2]
[315481087,1709073046405,-500.0,0.00023835,2]
[315481088,1709073046415,-500.0,0.00023835,2]
[315481089,1709073046424,-500.0,0.00023835,2]
[315481090,1709073046433,-508.96907304,0.00023835,2]
[315481091,1709073046442,-509.85724053,0.00023835,2]
[315481092,1709073046451,-500.0,0.00023835,2]
[315481093,1709073046461,-505.23864248,0.00023835,2]
[315481094,1709073046470,-500.0,0.00023835,2]
[315481095,1709073046479,-500.0,0.00023835,2]
[315481096,1709073046488,-500.0,0.00023835,2]
[315481097,1709073046498,-503.4828305,0.00023835,2]
[315481098,1709073046507,-500.0,0.00023835,2]
[315481099,1709073046516,-500.0,0.00023835,2]
[315481100,1709073046525,-500.0,0.00023835,2]
[315481101,1709073046534,-500.0,0.00023835,2]
[315481102,1709073046543,-500.0,0.00023835,2]
[315481103,1709073046553,-500.0,0.00023835,2]
[315481104,1709073046562,-500.0,0.00023835,2]
[315481105,1709073046571,-500.0,0.00023835,2]
[315481106,1709073046581,-508.48635901,0.00023835,2]
[315481107,1709073046590,-500.0,0.00023835,2]
[315481108,1709073046598,-500.0,0.00023835,2]
[315481109,1709073046607,-516.23555513,0.00023835,2]
[315481110,1709073046617,-153.12757047,0.00023835,2]
[315481111,1709073046626,-512.39839583,0.00023835,2]
[315481112,1709073046635,-500.0,0.00023835,2]
[315481113,1709073046644,-500.0,0.00023835,2]
[315481114,1709073046653,-505.9961217,0.00023835,2]
[315481115,1709073046662,-500.0,0.00023835,2]
[315481116,1709073046671,-500.0,0.00023835,2]
[315481117,1709073046681,-500.0,0.00023835,2]
[315481118,1709073046690,-545.27,0.00023835,2]
[315481119,1709073046699,-500.0,0.00023835,2]
[315481120,1709073046708,-545.27,0.00023835,2]
[315481121,1709073046718,-507.67470476,0.00023835,2]
[315481122,1709073046727,-545.27,0.00023835,2]
[315481123,1709073046736,-545.27,0.00023835,2]
[315481124,1709073046745,-500.0,0.00023835,2]
[315481125,1709073046754,-500.0,0.00023835,2]
[315481126,1709073046763,-535.3227798,0.00023835,2]
[315481127,1709073046772,-545.27,0.00023835,2]
[315481128,1709073046781,-545.27,0.00023835,2]
[315481129,1709073046790,-500.0,0.00023835,2]
[315481130,1709073046799,-545.27,0.00023835,2]
[315481131,1709073046809,-545.27,0.00023835,2]
[315481132,1709073046819,-499.39314712,0.00023835,2]
[315481133,1709073046828,-500.0,0.00023835,2]
[315481134,1709073046837,-545.27,0.00023835,2]
[315481135,1709073046846,-500.0,0.00023835,2]
[315481136,1709073046856,-500.0,0.00023835,2]
[315481137,1709073046865,-500.0,0.00023835,2]
[315481138,1709073046875,-500.0,0.00023835,2]
[315481139,1709073046884,-500.0,0.00023835,2]
[315481140,1709073046893,-329.76,0.00023835,2]
[315481141,1709073046902,-503.99008617,0.00023835,2]
[315481142,1709073046911,-500.0,0.00023835,2]
[315481143,1709073046921,-500.0,0.00023835,2]
[315481144,1709073046930,-500.0,0.00023835,2]
[315481145,1709073046939,-500.0,0.00023835,2]
[315481146,1709073046948,-500.0,0.00023835,2]
[315481147,1709073046957,-608.24360722,0.00023835,2]
[315481148,1709073046966,-500.0,0.00023835,2]
[315481149,1709073046975,-500.0,0.00023835,2]
[315481150,1709073046984,-507.98318771,0.00023835,2]
[315481151,1709073046993,-500.0,0.00023835,2]
[315481152,1709073047002,-512.80418189,0.00023835,2]
[315481153,1709073047011,-500.0,0.00023835,2]
[315481154,1709073047020,-347.09,0.00023835,2]
[315481155,1709073047030,-224.89174088,0.00023835,2]
[315481156,1709073047038,-500.0,0.00023835,2]
[315481157,1709073047047,-541.11437496,0.00023835,2]
[315481158,1709073047056,-500.0,0.00023835,2]
[315481159,1709073047065,-511.2509071,0.00023835,2]
[315481160,1709073047074,-500.0,0.00023835,2]
[315481161,1709073047083,-500.0,0.00023835,2]
[315481162,1709073047093,-516.2254874,0.00023835,2]
[315481163,1709073047104,-513.116768,0.00023835,2]
[315481164,1709073047113,-500.0,0.00023835,2]
[315481165,1709073047122,-500.0,0.00023835,2]
[315481166,1709073047132,-521.48802816,0.00023835,2]
[315481167,1709073047141,-517.70779906,0.00023835,2]
[315481168,1709073047150,-508.18630144,0.00023835,2]
[315481169,1709073047159,-561.62008962,0.00023835,2]
[315481170,1709073047168,-500.0,0.00023835,2]
[315481171,1709073047178,-500.0,0.00023835,2]
[315481172,1709073047187,-926.75,0.00023835,2]
[315481173,1709073047196,-926.75,0.00023835,2]
[315481174,1709073047206,-500.0,0.00023835,2]
[315481175,1709073047218,-500.0,0.00023835,2]
[315481176,1709073047227,-926.75,0.00023835,2]
[315481177,1709073047237,-500.0,0.00023835,2]
[315481178,1709073047246,-926.75,0.00023835,2]
[315481179,1709073047256,-500.0,0.00023835,2]
[315481180,1709073047265,-926.75,0.00023835,2]
[315481181,1709073047274,-549.87994472,0.00023835,2]
[315481182,1709073047284,-926.75,0.00023835,2]
[315481183,1709073047296,-510.39814874,0.00023835,2]
[315481184,1709073047305,-926.75,0.00023835,2]
[315481185,1709073047447,-500.0,0.00023835,2]
[315481186,1709073047457,-500.0,0.00023835,2]
[315481187,1709073047466,-926.75,0.00023835,2]
[315481188,1709073047475,-500.0,0.00023835,2]
[315481189,1709073047485,-926.75,0.00023835,2]
[315481190,1709073047495,-392.15028437,0.00023835,2]
[315481191,1709073047504,-500.0,0.00023835,2]
[315481192,1709073047513,-500.0,0.00023835,2]
[315481193,1709073047523,-368.47807901,0.00023835,2]
[315481194,1709073047532,-510.44112437,0.00023835,2]
[315481195,1709073047541,-509.29883836,0.00023835,2]
[315481196,1709073047550,-500.0,0.00023835,2]
[315481197,1709073047559,-172.12,0.00023835,2]
[315481198,1709073047568,-500.0,0.00023835,2]
[315481199,1709073047577,-500.0,0.00023835,2]
[315481200,1709073047586,-500.0,0.00023835,2]
[315481201,1709073047595,-500.0,0.00023835,2]
[315481202,1709073047604,-517.81983865,0.00023835,2]
[315481203,1709073047614,-500.0,0.00023835,2]
[315481204,1709073047623,-500.0,0.00023835,2]
[315481205,1709073047632,-500.0,0.00023835,2]
[315481206,1709073047641,-500.0,0.00023835,2]
[315481207,1709073047651,-500.0,0.00023835,2]
[315481208,1709073047660,-500.0,0.00023835,2]
[315481209,1709073047669,-511.31485574,0.00023835,2]
[315481210,1709073047680,-179.44139044,0.00023835,2]
[315481211,1709073047689,-500.0,0.00023835,2]
[315481212,1709073047698,-500.0,0.00023835,2]
[315481213,1709073047708,-500.0,0.00023835,2]
[315481214,1709073047717,-500.0,0.00023835,2]
[315481215,1709073047726,-500.0,0.00023835,2]
[315481216,1709073047735,-500.0,0.00023835,2]
[315481217,1709073047745,-518.88688696,0.00023835,2]
[315481218,1709073047754,-500.0,0.00023835,2]
[315481219,1709073047763,-500.0,0.00023835,2]
[315481220,1709073047772,-209.48996847,0.00023835,2]
[315481221,1709073047781,-510.26741631,0.00023835,2]
[315481222,1709073047790,-211.84691939,0.00023835,2]
[315481223,1709073047800,-504.33164549,0.00023835,2]
[315481224,1709073047809,-500.0,0.00023835,2]
[315481225,1709073047819,-500.0,0.00023835,2]
[315481226,1709073047828,-500.0,0.00023835,2]
[315481227,1709073047838,-515.12579578,0.00023835,2]
[315481228,1709073047851,-500.0,0.00023835,2]
[315481229,1709073047861,-500.0,0.00023835,2]
[315481230,1709073047871,-504.23367607,0.00023835,2]
[315481231,1709073047880,-500.0,0.00023835,2]
[315481232,1709073047890,-500.0,0.00023835,2]
[315481233,1709073047899,-500.0,0.00023835,2]
[315481234,1709073047907,-506.75825107,0.00023835,2]
[315481235,1709073047916,-500.0,0.00023835,2]
[315481236,1709073047926,-500.0,0.00023835,2]
[315481237,1709073047935,-500.0,0.00023835,2]
[315481238,1709073047947,-508.98600804,0.00023835,2]
[315481239,1709073047956,-500.0,0.00023835,2]
[315481240,1709073047965,-500.0,0.00023835,2]
[315481241,1709073047975,-500.0,0.00023835,2]
[315481242,1709073047984,-500.0,0.00023835,2]
[315481243,1709073047995,-500.0,0.00023835,2]
[315481244,1709073048004,-500.0,0.00023835,2]
[315481245,1709073048015,-500.0,0.00023835,2]
[315481246,1709073048025,-500.0,0.00023835,2]
[315481247,1709073048034,-500.0,0.00023835,2]
[315481248,1709073048044,-500.0,0.00023835,2]
[315481249,1709073048054,-642.25,0.00023835,2]
[315481250,1709073048064,-504.82825033,0.00023835,2]
[315481251,1709073048074,-500.0,0.00023835,2]
[315481252,1709073048083,-500.0,0.00023835,2]
[315481253,1709073048092,-500.0,0.00023835,2]
[315481254,1709073048101,-556.11433352,0.00023835,2]
[315481255,1709073048110,-500.0,0.00023835,2]
[315481256,1709073048121,-500.0,0.00023835,2]
[315481257,1709073048130,-500.0,0.00023835,2]
[315481258,1709073048139,-500.0,0.00023835,2]
[315481259,1709073048148,-500.0,0.00023835,2]
[315481260,1709073048158,-500.0,0.00023835,2]
[315481261,1709073048167,-425.60759391,0.00023835,2]
[315481262,1709073048176,-500.0,0.00023835,2]